{"text_format":"1","workbook":"xlsx","n_sheets":4,"sheets":["Журнал торгов","Отчёт 1","Отчёт 2","Отчёт 3"],"not_rendered":{"charts":0,"images":0,"macros":1,"external_links":0,"defined_names":6,"comments":1,"pivot_tables":0},"unopened":[],"bounds":{"document_bytes":16777216,"sheet_cells":100000,"rows_first":2000,"rows_last":500,"rows_between":2000,"halvings":0,"cell_chars":16384,"cell_head_chars":4096},"cells_cut":0,"cells_raw":0,"read":"whole","date_system":"1900"}

{"sheet":"Журнал торгов","index":0,"n_rows":32,"n_cols":34,"rows_kept":32,"cut":false,"hidden":false,"merged":[]}
["СТО","МОП","Статус","Комментарий","Актив","Пассив","Дата публикации","Площадка","№ извещения","Заказчик","Предмет договора","НМЦК","СВК","ПСЗК","РОЗ","ОИК","Дата подачи заявки","Новая дата подачи заявки","Дата игры","Новая дата \nигры","№\nзаявки","ПОБЕДИТЕЛЬ"]
[null,null,null,null,null,null," 12.01.2017 (МСК+7)","АО «ЕЭТП»","31704658676","КРАЕВОЙ КЛИНИЧЕСКИЙ ЦЕНТР СПЕЦИАЛИЗИРОВАННЫХ ВИДОВ МЕДИЦИНСКОЙ ПОМОЩИ","бахилы",357600,null,null,400,null,"18.01.2017 в 12:00 (МСК+7)",null,"19.01.2017 в 13:00 (МСК+7)",null,null,null,null,null,null,null,null,null,null,null,null,null,null,"НЕ УДАЛЯТЬ"]
[null,null,null,null,null,null,"2017-01-12T08:48:00","ЗАО «Сбербанк-АСТ»","0320300090617000001 ","ВЛАДИВОСТОКСКАЯ КЛИНИЧЕСКАЯ БОЛЬНИЦА № 1","комплектующие к медицинскому оборудованию (Система эндоскопическая ",1100000,null,null,11000,55000,"2017-01-17T09:00:00",null,"23.01.2017\n09:30",null,null,null,null,null,null,null,null,null,null,null,null,null,null,"На проверку"]
[null,null,null,null,null,null," 18.01.2017 (МСК+7)","ЗАО «Сбербанк-АСТ»","31704677550","Краевая клиническая больница № 2","Инструменты и приспособления офтальмологические",2523606,null,null,25236.06,126180.3,"25.01.2017 в 02:00 (МСК+7)",null,"25.01.2017 в 10:00 (МСК+7)",null,null,null,null,null,null,null,null,null,null,null,null,null,null,"Взять в работу"]
[null,null,null,null,null,null,"18.01.2017 (МСК+7)","Запрос котировок","31704677539","Центр гигиены и эпидемиологии в Приморском крае","инструмент измерительный прочий, не включенный в другие группировки",106642,null,null,null,null,"24.01.2017 в 16:00 (МСК+7)",null,"25.01.2017 в 11:00 (МСК+7)",null,null,null,null,null,null,null,null,null,null,null,null,null,null,"Не работаем"]
[null,null,null,null,null,null,"20.01.2017 (МСК+7)","ЗАО «Сбербанк-АСТ»",31704683246,"Краевая клиническая больница № 2","иммуноферментного анализатора",5302850,null,null,null,null,null,null,null,null,null,null,null,null,null,null,null,null,null,null,null,null,null,"Принят в работу"]
[null,null,null,null,null,null,"20.01.2017 (МСК+7)","ЗАО «Сбербанк-АСТ»","31704684999","Краевая клиническая больница № 2","Поставка прибора офтальмологического ультразвуковой диагностики",2384183.33,null,null,23841.83,715255,"27.01.2017 в 02:00 (МСК+7)",null,"27.01.2017 в 10:00 (МСК+7)",null,null,null,null,null,null,null,null,null,null,null,null,null,null,"Выиграли"]
[null,null,null,null,null,null,"20.01.2017 (МСК+7)","РТС-тендер","31704686152","ДАЛЬНЕВОСТОЧНЫЙ ФЕДЕРАЛЬНЫЙ УНИВЕРСИТЕТ","расходного материала для выполнения нейрохирургических операций",29375150,null,null,1468757.5,6168781,"13.02.2017 в 10:00 (МСК+7)",null,"20.02.2017 в 16:00 (МСК+7)",null,null,null,null,null,null,null,null,null,null,null,null,null,null,"Не выиграли"]
[null,null,null,null,null,null,"23.01.2017 (МСК+7)","Запрос котировок","31704692578","Центр гигиены и эпидемиологии в Приморском крае ","Среды готовые питательные для выращивания микроорганизмов",58624.800000000003,null,null,null,null,"30.01.2017 в 16:00 (МСК+7)",null,"31.01.2017 в 10:30 (МСК+7) по местному времени",null,null,null,null,null,null,null,null,null,null,null,null,null,null,"Отклонили по 1ч"]
[null,null,null,null,null,null,"23.01.2017 (МСК+7)","Запрос котировок","31704692505","Центр гигиены и эпидемиологии в Приморском крае»","микропланшет, пипетка, наконечник",147888,null,null,null,null,"30.01.2017 в 16:00 (МСК+7)",null,"31.01.2017 в 10:00 (МСК+7)",null,null,null,null,null,null,null,null,null,null,null,null,null,null,"Отклонили по 2ч"]
[null,null,null,null,null,null,"23.01.2017 (МСК+7)","Запрос котировок","31704691604","КРАЕВАЯ ПСИХИАТРИЧЕСКАЯ БОЛЬНИЦА № 2","колющие",253821,null,null,null,null,"27.01.2017 в 16:30 (МСК+7)",null,"30.01.2017 в 10:00 (МСК+7)",null,null,null,null,null,null,null,null,null,null,null,null,null,null,"Жалоба в УФАС"]
[null,null,null,null,null,null,"23.01.2017 (МСК+7)","Запрос котировок","31704691482","КРАЕВАЯ ПСИХИАТРИЧЕСКАЯ БОЛЬНИЦА № 3","перчатки",176236,null,null,null,null,"27.01.2017 в 16:30 (МСК+7)",null,"30.01.2017 в 10:00 (МСК+7)",null,null,null,null,null,null,null,null,null,null,null,null,null,null,"Запрос"]
[null,null,null,null,null,null,"2017-01-31T10:00:00","ЗАО «Сбербанк-АСТ»","0320300075917000001 ","КРАЕВАЯ КЛИНИЧЕСКАЯ ИНФЕКЦИОННАЯ БОЛЬНИЦА","салфетки, повязки",297748.3,null,null,2977.48,14887.42,"2017-02-08T10:00:00",null,"2017-02-13T09:00:00",null,null,null,null,null,null,null,null,null,null,null,null,null,null,"Продлён"]
[null,null,null,null,null,null,"2017-01-31T07:10:00","ЗАО «Сбербанк-АСТ»","0320300045217000007 ","ЛЕСОЗАВОДСКАЯ ЦЕНТРАЛЬНАЯ ГОРОДСКАЯ БОЛЬНИЦА","дезы",2434897.67,null,null,24348.98,121744.88,"2017-02-08T09:00:00",null,"2017-02-13T09:30:00",null,null,null,null,null,null,null,null,null,null,null,null,null,null,"Отменён"]
[null,null,null,null,null,null,"2017-01-31T08:39:00","ЗАО «Сбербанк-АСТ»","0320300091117000005 ","АРТЕМОВСКАЯ ГОРОДСКАЯ БОЛЬНИЦА № 1","для лаборатории",922501.57,null,null,9225.02,46125.08,"2017-02-08T10:00:00",null,"2017-02-13T13:45:00",null,null,null,null,null,null,null,null,null,null,null,null,null,null,"Отгружаем"]
[null,null,null,null,null,null,"2017-01-31T07:13:00","ЗАО «Сбербанк-АСТ»","0320300045217000008 ","ЛЕСОЗАВОДСКАЯ ЦЕНТРАЛЬНАЯ ГОРОДСКАЯ БОЛЬНИЦА","для нужд травматологического отделения",607276.28,null,null,6072.76,30363.81,"2017-02-08T09:00:00",null,"2017-02-13T09:45:00",null,null,null,null,null,null,null,null,null,null,null,null,null,null,"Расторгнут"]
[null,null,null,null,null,null,"02.02.2017 (МСК+7)","РТС-тендер","31704746762","ДАЛЬНЕВОСТОЧНЫЙ ФЕДЕРАЛЬНЫЙ УНИВЕРСИТЕТ ","Поставка расходных материалов к комплексу роботизированному хирургическому эндоскопическому da Vinci Si, IS3000",8912904,null,null,445645.2,980419.44,"27.02.2017 в 10:00 (МСК+7)",null,"06.03.2017 в 16:00 (МСК+7)",null,null,null,null,null,null,null,null,null,null,null,null,null,null,"Закрыт"]
[null,"Саша","На проверку",null,null,null,"2017-08-31T17:57:00","АО «ЕЭТП»","0320300089417000068","ВЛАДИВОСТОКСКАЯ ПОЛИКЛИНИКА № 6","Поставка одноразовых медицинских изделий","529944.00",null,null,"5299.44","52994.40","2017-09-08T18:00:00",null,"2017-09-15"]
[null,null,"Взять в работу",null,null,null,"01.09.2017 (МСК+7)"," Запрос котировок","31705482599","КГБУ СОЦИАЛЬНОГО ОБСЛУЖИВАНИЯСПАССКИЙ ДОМ-ИНТЕРНАТ ДЛЯ ПРЕСТАРЕЛЫХ И ИНВАЛИДОВ","Кровать металлическая одноярусная К-С1(3),Матрас пружинный",341696.2,null,null,null,null,"13.09.2017 в 10:00",null,"13.09.2017 в 10:20 (МСК+7)"]
["Катя","Саша","Не работаем",null,null,null,"2017-09-03T16:45:00","ЗАО «Сбербанк-АСТ»","0320100031717000113","ФГКУ1477 ВОЕННО-МОРСКОЙ КЛИНИЧЕСКИЙ ГОСПИТАЛЬ МИНИСТЕРСТВА ОБОРОНЫ РОССИЙСКОЙ ФЕДЕРАЦИИ","Пакет бумажный самоклеящийся (крафт), 100 шт/упаковка 300*390,Пакет для паровой, воздушной, этиленоксидной, радиационной стерилизации комбинированный самоклеящийся плоский с индикатором 5 класса\",Изделия медицинского назначения 6,3л для сбора острого инструментария",424316,null,null,4243.16,21215.8,"2017-09-13T12:00:00",null,"2017-09-19"]
[null,null,"Принят в работу",null,null,null,"2017-09-03T15:35:00","ЗАО «Сбербанк-АСТ»","0320100031717000112","ФГКУ1477 ВОЕННО-МОРСКОЙ КЛИНИЧЕСКИЙ ГОСПИТАЛЬ МИНИСТЕРСТВА ОБОРОНЫ РОССИЙСКОЙ ФЕДЕРАЦИИ","Игла фистульная 16 G  венoзная ,Катетер для гемoдиализа из пoлиуретана с набoрoм для устанoвки, двухпрoсветный, краткoвременный, прямoй, диаметр 11 Fr, длина 15 см,Диализатoр низкoпoтoчный, синтетический с плoщадью пoверхнoсти мембраны – 1,8 м²",2124367.4,null,null,21243.67,106218.37,"2017-09-13T12:00:00",null,"2017-09-19"]
["Алёна",null,"Выиграли",null,null,null,"2017-09-03T14:14:00","ЗАО «Сбербанк-АСТ»","0320100031717000109","ФГКУ1477 ВОЕННО-МОРСКОЙ КЛИНИЧЕСКИЙ ГОСПИТАЛЬ МИНИСТЕРСТВА ОБОРОНЫ РОССИЙСКОЙ ФЕДЕРАЦИИ","Шприц стерил.одноразов. 3-х комп. 1 мл.,Шприц стерил.одноразов. 3-х комп. инсулиновый 1 мл.,Шприц стерил.доноразов.50мл.,Шприц для промывания \"Жане\" 150мл.",59633,35923.32,33306.74,596.33000000000004,2981.65,"2017-09-12T12:00:00",null,"2017-09-18",null,null,"ВМС"]
[null,null,"Отклонили по 1ч",null,null,null,"2017-09-03T13:47:00","ЗАО «Сбербанк-АСТ»","0320100031717000108","ФГКУ1477 ВОЕННО-МОРСКОЙ КЛИНИЧЕСКИЙ ГОСПИТАЛЬ МИНИСТЕРСТВА ОБОРОНЫ РОССИЙСКОЙ ФЕДЕРАЦИИ","Перекись водорода 33-40% раствор концентрат (канистра не менее 11 кг)",87360,null,null,873.6,4368,"2017-09-12T12:00:00",null,"2017-09-18"]
[null,null,"Отклонили по 2ч",null,null,null,"2017-09-04T08:49:00","ЗАО «Сбербанк-АСТ»","0320300011217000100","МИХАЙЛОВСКАЯ ЦЕНТРАЛЬНАЯ РАЙОННАЯ БОЛЬНИЦА","бинт гипс 15*300,лейкопластырь 2*500,вата нестер 250,0,лейкопластырь 10*25",214185,null,null,2141.85,21418.5,"2017-09-12T09:00:00",null,"2017-09-18"]
["Катя",null,"Жалоба в УФАС",null,null,null,"2017-09-04T08:48:00","ЗАО «Сбербанк-АСТ»","0320300043117000121","ПАРТИЗАНСКАЯ ЦЕНТРАЛЬНАЯ РАЙОННАЯ БОЛЬНИЦА","Бинт, катетер, марля, салфетки, тест-полоски, шапочка, шприц",899415,null,null,8994.15,44970.75,"2017-09-12T09:00:00",null,"2017-09-18"]
["Юля",null,"Запрос",null,null,null,"2017-09-04T08:45:00","ЗАО «Сбербанк-АСТ»","0320300043117000120","ПАРТИЗАНСКАЯ ЦЕНТРАЛЬНАЯ РАЙОННАЯ БОЛЬНИЦА","Нить, перчатки, шпатель, эндотрахеальная трубка,кружка Эсмарха, Коннектор,Термобумага для аппарата  ЭКГ",737412.5,null,null,7374.13,36870.629999999997,"2017-09-12T09:00:00",null,"2017-09-18"]
[null,null,"Продлён",null,null,null,"2017-09-04T08:36:00","ЗАО «Сбербанк-АСТ»","0320300082617000023","СТАНЦИЯ СКОРОЙ МЕДИЦИНСКОЙ ПОМОЩИ Г. АРТЕМА","Облучатель-рециркулятор",94500,null,null,945,4725,"2017-09-12T17:00:00",null,"2017-09-18"]
["Алёна",null,"Отменён",null,null,null,"2017-09-04T08:26:00","ЗАО «Сбербанк-АСТ»","0320300082617000022","СТАНЦИЯ СКОРОЙ МЕДИЦИНСКОЙ ПОМОЩИ Г. АРТЕМА","Катетер внутривенный с доп. портом и крыльями стерильный (G20),Устройство для вливания инфузионных растворов,Нить нерассасывающаяся,Набор для коникотомии одноразовый,Шприц инъекционный 2,0мл",145730,null,null,1457.3,7286.5,"2017-09-13T17:00:00",null," 18.09.2017"]
["Юля",null,"Отгружаем",null,null,null,"2017-09-05T15:54:00","РТС-тендер","0320300026117000108","ДАЛЬНЕРЕЧЕНСКАЯ ЦЕНТРАЛЬНАЯ ГОРОДСКАЯ БОЛЬНИЦА","медицинского расходного материала",1718210,null,null,17182.099999999999,171821,"2017-09-13T10:00:00",null,"2017-09-18"]
[null,null,"Расторгнут",null,null,null,"2017-09-05T11:17:00","ЗАО «Сбербанк-АСТ»","0320100031717000114","1477 ВОЕННО-МОРСКОЙ КЛИНИЧЕСКИЙ ГОСПИТАЛЬ МИНИСТЕРСТВА ОБОРОНЫ РОССИЙСКОЙ ФЕДЕРАЦИИ МИНИСТЕРСТВА ОБОРОНЫ РОССИЙСКОЙ ФЕДЕРАЦИИ","Поставка расходных медицинских материалов для станции переливания крови",355940,null,null,3559.4,17797,"2017-09-14T12:00:00",null,"2017-09-20"]
[null,null,"Закрыт",null,null,null,"2017-09-05T17:42:00","РТС-тендер","0320300026117000109","ДАЛЬНЕРЕЧЕНСКАЯ ЦЕНТРАЛЬНАЯ ГОРОДСКАЯ БОЛЬНИЦА","Шприц, система инфузионная с лейкопластырем и иглой-бабочкой, иглы для взятия крови",2249460,null,null,22494.6,224946,"2017-09-14T10:00:00",null,"2017-09-18"]
["Юля","ЮМ","Не выиграли",null,null,null,"2017-09-06T20:02:00","ЗАО «Сбербанк-АСТ»","0320100031717000120 ","1477 ВОЕННО-МОРСКОЙ КЛИНИЧЕСКИЙ ГОСПИТАЛЬ МИНИСТЕРСТВА ОБОРОНЫ РОССИЙСКОЙ ФЕДЕРАЦИИ"," Поставка изделий медицинского назначения (перчаток медицинских)",886020,null,null,8860.2000000000007,44301,"2017-09-19T12:00:00",null,"2017-09-25"]

{"sheet":"Отчёт 1","index":1,"n_rows":22,"n_cols":17,"rows_kept":22,"cut":false,"hidden":false,"merged":[[5,1,5,2],[0,0,2,3],[3,0,4,3],[3,4,4,4],[3,5,3,13],[5,5,5,6],[5,7,5,9],[5,10,5,13],[5,14,5,15],[3,14,4,16]]}
["Статистика 2017 г.",null,null,null,"Краткие итоги","Не работ","Принят\nв работ","Выиграли","Не выиграли","Отклон \n1 часть","Отклон \n2 часть","Жалоба\nв УФАС","Запрос","Отменён","Отгру\nжаем","Растор\nгнут","Закрыт"]
[null,null,null,null,"Выполняется процессов сейчас",{"$f":"COUNTIF('Журнал торгов'!C2:C10000,\"Не работаем\")","v":1},{"$f":"COUNTIF('Журнал торгов'!C2:C10000,\"Принят в работу\")","v":1},{"$f":"COUNTIF('Журнал торгов'!C2:C10000,\"Выиграли\")","v":1},{"$f":"COUNTIF('Журнал торгов'!C2:C10000,\"Не выиграли\")","v":1},{"$f":"COUNTIF('Журнал торгов'!C2:C10000,\"Отклонили по 1ч\")","v":1},{"$f":"COUNTIF('Журнал торгов'!C2:C10000,\"Отклонили по 2ч\")","v":1},{"$f":"COUNTIF('Журнал торгов'!C2:C10000,\"Жалоба в УФАС\")","v":1},{"$f":"COUNTIF('Журнал торгов'!C2:C10000,\"Запрос\")","v":1},{"$f":"COUNTIF('Журнал торгов'!C2:C10000,\"Отменён\")","v":1},{"$f":"COUNTIF('Журнал торгов'!C2:C10000,\"Отгружаем\")","v":1},{"$f":"COUNTIF('Журнал торгов'!C2:C10000,\"Расторгнут\")","v":1},{"$f":"COUNTIF('Журнал торгов'!C2:C10000,\"Закрыт\")","v":1}]
[null,null,null,null,"Выполнено процессов за всё время",{"$f":"COUNTIF(D8:D5003,\"Не работаем\")","v":1},{"$f":"COUNTIF(D8:D5003,\"Принят в работу\")","v":1},{"$f":"COUNTIF(D8:D5003,\"Выиграли\")","v":1},{"$f":"COUNTIF(D8:D5003,\"Не выиграли\")","v":1},{"$f":"COUNTIF(D8:D5003,\"Отклонили по 1ч\")","v":1},{"$f":"COUNTIF(D8:D5003,\"Отклонили по 2ч\")","v":1},{"$f":"COUNTIF(D8:D5003,\"Жалоба в УФАС\")","v":3},{"$f":"COUNTIF(D8:D5003,\"Запрос\")","v":2},{"$f":"COUNTIF(D8:D5003,\"Отменён\")","v":1},{"$f":"COUNTIF(D8:D5003,\"Отгружаем\")","v":1},{"$f":"COUNTIF(D8:D5003,\"Расторгнут\")","v":1},{"$f":"COUNTIF(D8:D5003,\"Закрыт\")","v":1}]
["Дата и время:",null,null,null,{"$f":"NOW()","v":"2017-11-14T13:52:49.540"},"ИТОГО за всё время:"]
[null,null,null,null,null,{"$f":"SUBTOTAL(9,F8:F5006)","v":4},{"$f":"SUBTOTAL(9,G8:G5006)","v":10},{"$f":"SUBTOTAL(9,H8:H5006)","v":0},0,0,{"$f":"SUBTOTAL(9,K8:K5006)","v":1},3,1,1]
[null,"Ответственные",null,null,null,"Аукцион",null,"Деньги, руб.",null,null,"Запросы и жалобы в УФАС",null,null,null,"Ссылки"]
["Дата и время","СТО","МП","Статус","№ извещения","Актив","Пассив","НМЦК","СВК","Разница сумм","Продлён срок","Аукцион снят","Обоснованно","Необоснованно","Наш\nзапрос","Ответ\nнам","Примечание"]
[null,null,null,"Не работаем",null,1,null,null,null,{"$f":"H8-I8","v":0}]
[null,null,null,"Принят в работу",null,null,1]
[null,null,null,"Выиграли",null,null,1]
[null,null,null,"Не выиграли",null,null,1]
[null,null,null,"Отклонили по 1ч",null,1]
[null,null,null,"Отклонили по 2ч",null,null,1]
[null,null,null,"Жалоба в УФАС",null,null,1,null,null,null,null,1]
[null,null,null,"Жалоба в УФАС",null,1,null,null,null,null,null,null,1]
[null,null,null,"Жалоба в УФАС",null,null,1,null,null,null,null,null,null,1]
[null,null,null,"Запрос",null,null,1,null,null,null,1]
[null,null,null,"Запрос",null,null,1,null,null,null,null,1]
[null,null,null,"Отменён",null,1,null,null,null,null,null,1]
[null,null,null,"Отгружаем",null,null,1]
[null,null,null,"Расторгнут",null,null,1]
[null,null,null,"Закрыт"]

{"sheet":"Отчёт 2","index":2,"n_rows":1,"n_cols":19,"rows_kept":1,"cut":false,"hidden":false,"merged":[]}
["Дата","Не рабо\nтаем","Принят\nв работу","Выиграли","Не \nвыиграли","Отклонили по \n1 части","Отклонили по \n2 части","Жалоба\nв УФАС","Запрос","Отменён","Отгру\nжаем","Растор\nгнут","Закрыт","Актив","Пассив","Продлён срок","Аукцион снят","Обоснованно","Необоснованно"]

{"sheet":"Отчёт 3","index":3,"n_rows":20,"n_cols":27,"rows_kept":20,"cut":false,"hidden":false,"merged":[]}
["Тенд. Спец","Менеджер","Фирма","Статус закрыт","ЛПУ","№ извещения","№\nкон-та","Предмет контракта","НМЦ аукциона","% понижения","экономия бюджета ЛПУ","2017год","Дата подписания контракта","Дата исполнения, до","Размер обеспечения","расчетная сумма закупа","наценка","% НАЦЕНКИ","Поставлено товара в ЛПУ по документам, руб.","Наш долг по товару, руб","Оплачено ЛПУ, руб.","Долг по оплате ЛПУ, руб. на 23.06.2017г. Только за контракты 2017года","% поставленных товаров","% оплаченных товаров","прибыль по поставленным товарам","прибыль по оплаченным товарам","Ожидаемая прибыль по непоставленным  и не оплаченым товарам по контрактам за 2017год"]
[null,null,null,null,null,null,null,null,null,null,null,{"$f":"SUM(L3,L14)","v":13682922.08},null,null,null,null,null,null,null,{"$f":"L2-S2","v":13682922.08},{"$f":"U3+U14+#REF!+#REF!+#REF!+#REF!+#REF!+#REF!+#REF!+#REF!+#REF!+#REF!+#REF!+#REF!+#REF!+#REF!+#REF!+#REF!+#REF!+#REF!+#REF!+#REF!+#REF!+#REF!+#REF!+#REF!+#REF!+#REF!+#REF!+#REF!+#REF!+#REF!+#REF!+#REF!+#REF!+#REF!+#REF!+#REF!+#REF!+#REF!+#REF!+#REF!+#REF!+#REF!+#REF!+#REF!+#REF!+#REF!+#REF!","v":{"$error":"#REF!"}},{"$f":"S2-U2","v":{"$error":"#REF!"}},null,null,null,null,{"$f":"AA3+AA14+#REF!+#REF!+#REF!+#REF!+#REF!+#REF!+#REF!+#REF!+#REF!+#REF!+#REF!+#REF!+#REF!+#REF!+#REF!+#REF!+#REF!+#REF!+#REF!+#REF!+#REF!+#REF!+#REF!+#REF!+#REF!+#REF!+#REF!+#REF!+#REF!+#REF!+#REF!+#REF!","v":{"$error":"#REF!"}}]
[null,null,null,null,"Детская поликлиника №5",null,null,null,null,null,null,{"$f":"SUM(L4:L12)","v":3822879},null,null,null,{"$f":"L3-Q3","v":1762570},{"$f":"SUM(Q4:Q12)","v":2060309},{"$f":"(L3/P3)-1","v":1.1689232200706923},{"$f":"SUM(S4:S12)","v":1192384.1499999999},{"$f":"L3-S3","v":2630494.85},{"$f":"SUM(U4:U12)","v":1192384.1499999999},{"$f":"S3-U3","v":0},{"$f":"(S3*100)/L3","v":31.190737399745057},{"$f":"(U3*100)/L3","v":31.190737399745057},{"$f":"(Q3/100)*W3","v":642625.56981331343},{"$f":"(Q3/100)*X3","v":642625.56981331343},{"$f":"Q3-Z3","v":1417683.4301866866}]
[null,null,"СЕРВИС",null,"КГБУЗ \"Детская поликлиника №5\"","0320300111016000078",null,"измер.приборы",357770,{"$f":"(L4/I4-1)*100","v":-46.533527126366103},{"$f":"I4-L4","v":166483},191287,"2017-02-07","2017-12-31","БГ",190000,{"$f":"L4-P4","v":1287},null,191287,0,191287,0]
[null,null,"СЕРВИС",null,"КГБУЗ \"Детская поликлиника №5\"","0320300111017000008",null,"гели, перчатки",725680,-5.0000000000000044,36284,689396,"2017-03-21","2017-12-31","БГ",581860,{"$f":"L5-P5","v":107536},null,384797.5,304598.5,384797.5,0]
[null,null,"СЕРВИС",null,"КГБУЗ \"Детская поликлиника №5\"","0320300111017000009",null,"колющие",1370977.5,0,0,1370977.5,"2017-03-30","2017-12-31","БГ",287180,1083797.5,null,265603.65000000002,1105373.8500000001,265603.65000000002,0]
[null,null,"СЕРВИС",null,"КГБУЗ \"Детская поликлиника №5\"","0320300111017000010",null,"салфетки",557550,0,0,557550,"2017-03-30","2017-12-31","БГ",218600,338950,null,42525,515025,42525,0]
[null,null,"СЕРВИС",null,"КГБУЗ \"Детская поликлиника №5\"","0320300111017000011",null,"рентген",410000,-46.809512195121947,191919,218081,"2017-04-03","2017-12-31","БГ",126130,91951,null,218081,0,218081,0]
[null,null,"СЕРВИС",null,"КГБУЗ \"Детская поликлиника №5\"","0320300111017000016",null,"перчатки",404550,-5.0000000000000044,20227.5,384322.5,"2017-06-14","2017-12-31","БГ",160000,224322.5,null,0,384322.5,0,{"$f":"S9-U9","v":0}]
[null,null,"ИП СЕРОВА",null,"КГБУЗ \"Детская поликлиника №5\"","0320300111017000017",null,"салфетки",88900,0,0,88900,"2017-06-14","2017-12-31","БГ",49200,39700,null,0,88900,0,{"$f":"S10-U10","v":0}]
[null,null,"ИП СЕРОВА",null,"КГБУЗ \"Детская поликлиника №5\"","0320300111017000018",null,"шпатели",103200,0,0,103200,"2017-06-14","2017-12-31","БГ",83200,20000,null,6450,96750,6450,{"$f":"S11-U11","v":0}]
[null,null,"ИП СЕРОВА",null,"КГБУЗ \"Детская поликлиника №5\"","0320300111017000020",null,"бахилы",219165,0,0,219165,"2017-06-14","2017-12-31","БГ",66400,152765,null,83640,135525,83640,{"$f":"S12-U12","v":0}]
[]
[null,null,null,null,"Находкинская ГБ",null,null,null,null,null,null,{"$f":"SUM(L15:L20)","v":9860043.0800000001},null,null,null,{"$f":"L14-Q14","v":4236000},{"$f":"SUM(Q15:Q20)","v":5624043.0800000001},{"$f":"(L14/P14)-1","v":1.3276777809254012},{"$f":"SUM(S15:S20)","v":1474163.74},{"$f":"L14-S14","v":8385879.3399999999},{"$f":"SUM(U15:U20)","v":0},{"$f":"S14-U14","v":1474163.74},{"$f":"(S14*100)/L14","v":14.950885387003806},{"$f":"(U14*100)/L14","v":0},{"$f":"(Q14/100)*W14","v":840844.23500651878},{"$f":"(Q14/100)*X14","v":0},{"$f":"Q14-Z14","v":5624043.0800000001}]
[null,null,"ВМС",null,"КГБУЗ \"Находкинская ГБ\"","договор разовый"," 24","ИМН",null,{"$f":"(L15/I15-1)*100","v":{"$error":"#DIV/0!"}},null,26265,"2017-02-13","2017-12-31",null,18500,{"$f":"L15-P15","v":7765},null,26265,{"$f":"L15-S15","v":0},0,{"$f":"S15-U15","v":26265}]
[null,null,"ВМС",null,"КГБУЗ \"Находкинская ГБ\"","договор разовый"," 25","ИМН",null,{"$error":"#DIV/0!"},null,13500,"2017-02-13","2017-12-31",null,8400,5100,null,13500,0,0,13500]
[null,null,"ВМС",null,"КГБУЗ \"Находкинская ГБ\"","0320300150416000519",null,"рентген",8426690.0999999996,0,{"$f":"I17-L17","v":0},8426690.0999999996,"2017-01-23","2017-11-30","БГ",3370000,5056690.0999999996,null,1368650.74,7058039.3599999994,0,1368650.74]
[null,null,"СЕРВИС",null,"КГБУЗ \"Находкинская ГБ\"","0320300150417000017",null,"ФД",1172750.98,0,{"$f":"I18-L18","v":0},1172750.98,"2017-03-24","2017-11-30","БГ",650000,522750.98,null,15020,1157730.98,0,15020]
[null,null,"СЕРВИС","котировка","КГБУЗ \"Находкинская ГБ\"","0320300150417000175",null,"рентген одежда",59732.74,-15.075049294574461,{"$f":"I19-L19","v":9004.739999999998},50728,"2017-06-01","…2017",null,39100,11628,null,50728,0,0,50728]
[null,null,"СЕРВИС",null,"КГБУЗ \"Находкинская ГБ\"","0320300150417000190",null,"вата",215000,-20.879534883720929,{"$f":"I20-L20","v":44891},170109,"2017-06-19","…2017",null,150000,20109,null,0,170109,0,0]